Cogmind - Beta 11 --- EXPLORER MODE // 2022.03.29 @ 15:15:10 Player: viper Result: Destroyed by H-55 Commando with Gauss Rifle Performance ------------- Evolutions (0) 0 Regions Visited (3) 600 Robots Destroyed (56) 280 Value Destroyed (2133) 2133 Prototype IDs (1) 20 Alien Tech Used (0) 0 Bonus (356) 356 TOTAL SCORE: 3389 Bonus ------- Follower Combat Kills 56 Aligned with FarCom 300 Cogmind --------- Core Integrity 0/250 Matter 226/300 Energy 150/150 System Corruption 3% Temperature Cool (36) Movement Walking (260) Ox2 Location -10/Exiles Parts ------- > --- POWER (1) -------- Micro Nuclear Core > --- PROPULSION (2) --- Aluminum Leg Aluminum Leg > --- UTILITY (3) ------ High-capacity Storage Unit Targeting Computer Core Shielding > --- WEAPON (2) ------- Gauss Rifle Gauss Rifle > --- INVENTORY (20) --- Ion Engine Large Storage Unit High-capacity Matter Pod (200) High-capacity Matter Pod (200) Structural Scanner Visual Processing Unit Sensor Array Experimental Sensor Array Signal Interpreter Targeting Computer Cloak of Protection Utility Shielding AWS/Gauss AWS/Autocannon Rocket Launcher Peak State ------------ > --- POWER ------------ Micro Nuclear Core > --- PROPULSION ------- Aluminum Leg Aluminum Leg > --- UTILITY ---------- High-capacity Storage Unit Targeting Computer Core Shielding > --- WEAPON ----------- AWS/Gauss > --- INVENTORY -------- Ion Engine Large Storage Unit High-capacity Matter Pod High-capacity Matter Pod Structural Scanner Visual Processing Unit Sensor Array Experimental Sensor Array Signal Interpreter Targeting Computer Cloak of Protection Utility Shielding AWS/Autocannon Rocket Launcher [Rating: 31] Favorites ----------- Power Ion Engine Engine Ion Engine Power Core Micro Nuclear Core Propulsion Aluminum Leg Leg Aluminum Leg Utility Targeting Computer Storage High-capacity Storage Unit Processor Targeting Computer Protection Core Shielding Weapon Assault Rifle Energy Gun EM Pulse Gun Ballistic Gun Assault Rifle Launcher Rocket Launcher Build | -11 -10 -10 -10 ------- Run | Scr Mat Min Exi Slots Evolved 1 | . 1 . . Power . | . . . . Propulsion . | . . . . Utility 1 | . 1 . . Weapon . | . . . . Parts Attached 28 | 7 6 4 11 Power 3 | 1 1 . 1 Engine 2 | 1 1 . . Core 1 | . . . 1 Reactor . | . . . . Propulsion 7 | 2 2 1 2 Treads . | . . . . Leg 7 | 2 2 1 2 Wheel . | . . . . Hover . | . . . . Flight . | . . . . Utility 5 | 2 2 1 . Device . | . . . . Storage 3 | 1 1 1 . Processor 1 | 1 . . . Hackware . | . . . . Protection 1 | . 1 . . Artifact . | . . . . Weapon 13 | 2 1 2 8 Energy Gun 3 | 1 . 1 1 Energy Cannon . | . . . . Ballistic Gun 9 | 1 1 1 6 Ballistic Cannon . | . . . . Launcher 1 | . . . 1 Special Weapon . | . . . . Impact Weapon . | . . . . Slashing Weapon . | . . . . Piercing Weapon . | . . . . Special Melee Weapon . | . . . . Unidentified Prototypes 1 | . . . 1 Parts Lost 7 | . . 1 6 Power 1 | . . . 1 Propulsion 2 | . . . 2 Utility . | . . . . Weapon 4 | . . 1 3 Highest Loss Streak 5 | . . 1 5 To Critical Strikes . | . . . . Average Slot Usage (%) 97 | . 100 100 95 Engine 11 | . 12 12 10 Leg 24 | . 25 25 24 Storage 12 | . 12 12 12 Processor 12 | . 12 12 12 Protection 12 | . 12 12 12 Ballistic Gun 22 | . 23 23 21 Naked Turns . | . . . . Heaviest Build 57 | 19 29 50 57 Greatest Support 20 | 20 20 20 20 Greatest Overweight (x) 9 | 5 9 4 5 Average Overweight (x) 1 | . . 1 2 Largest Inventory Capacity 20 | 10 15 20 20 Average Capacity 18 | 8 12 19 20 Most Carried 20 | 4 12 16 20 Average Carried 15 | 1 7 14 19 Final Capacity 20 | 10 15 20 20 Final Carried 18 | 4 12 16 18 Class Distribution -------------------- 100% | Hacker-Mutant Dominant Class ---------------- Hacker-Mutant | -10/Materials Hacker-Mutant | -10/Mines Hacker-Mutant | -10/Exiles Resources | -11 -10 -10 -10 ----------- Run | Scr Mat Min Exi Matter Collected 747 | 169 313 104 161 Remotely . | . . . . Salvage Created 2126 | . 406 109 1611 Parts 142 | . 29 9 104 Haulers Intercepted 1 | . 1 . . Recyclers Shooed 1 | . . 1 . Parts Field Recycled . | . . . . Retrieved Matter . | . . . . Parts Self-Destructed . | . . . . Prevented . | . . . . Kills | -11 -10 -10 -10 ------- Run | Scr Mat Min Exi Combat Hostiles Destroyed 51 | . 8 6 37 Guns 46 | . 8 6 32 AOE 5 | . . . 5 Classes Destroyed 11 | . 6 . 5 Worker 1 | . 1 . . Builder 1 | . 1 . . Hauler 1 | . 1 . . Watcher 2 | . 2 . . Swarmer 7 | . 2 5 . Grunt 20 | . 6 1 13 Brawler 2 | . . . 2 Duelist 1 | . . . 1 Demolisher 1 | . . . 1 Hunter 11 | . . . 11 Programmer 9 | . . . 9 Best Kill Streak 23 | . 3 2 23 Combat Bots Only 23 | . 2 2 23 Max Kills in Single Turn 2 | . 1 2 2 Gunslinging 1 | . . 1 1 Exploded 2 | . . . 2 Melee . | . . . . Uniques/NPCs Destroyed . | . . . . Combat | -11 -10 -10 -10 -------- Run | Scr Mat Min Exi Damage Taken 1403 | . 250 167 986 Core 256 | . 18 21 217 Absorbed by Shields . | . . . . Redirected to Shielding 43 | . 3 3 37 Core Remaining (%) 100 | 100 . . . Volleys Fired 83 | . 39 16 28 Largest 2 | . 2 2 2 Hottest 60 | . 60 40 60 Shots Fired 231 | . 78 32 121 Gun 227 | . 78 32 117 Cannon . | . . . . Launcher 4 | . . . 4 Special . | . . . . Kinetic 218 | . 74 32 112 Thermal 5 | . . . 5 Explosive 4 | . . . 4 Electromagnetic 4 | . 4 . . Robot Hit Streak 40 | . 17 8 40 Robot Miss Streak 2 | . 1 2 1 Penetration Max 1 | . . . 1 Secondary Targets 2 | . . 1 1 Max Gunslinging Chain 1 | . . 1 1 Autonomous 71 | . . . 71 Shots Hit Robots 192 | . 62 22 108 Core Hits 88 | . 23 8 57 Critical Kills 1 | . . 1 . Critical Parts Destroyed 2 | . 1 . 1 Critical Strikes 3 | . 1 1 1 Destroy 3 | . 1 1 1 Melee Attacks . | . . . . Impact . | . . . . Slashing . | . . . . Piercing . | . . . . Sneak Attacks . | . . . . Combat Hostiles . | . . . . Follow-up Attacks . | . . . . Damage Inflicted 3828 | . 682 229 2917 Guns 3508 | . 682 222 2604 Cannons . | . . . . Explosions 313 | . . . 313 Melee . | . . . . Ramming 7 | . . 7 . Kinetic 3411 | . 650 222 2539 Thermal 65 | . . . 65 Explosive 313 | . . . 313 Electromagnetic 32 | . 32 . . Impact . | . . . . Slashing . | . . . . Piercing . | . . . . Highest Corruption 3 | . . . 3 Average Corruption 1 | . . . 1 Corruption Purged . | . . . . Corruption Blocked . | . . . . Effects 3 | . . . 3 Matter Fused 1 | . . . 1 Data Loss (major) 1 | . . . 1 Misfires 1 | . . . 1 Overload Shots . | . . . . Overflow Damage . | . . . . Projectiles . | . . . . Explosions . | . . . . Melee . | . . . . Knockbacks . | . . . . Impact . | . . . . Kinetic . | . . . . Secondary . | . . . . Self-Inflicted Damage 28 | . . . 28 Shots 1 | . . . 1 Rammed . | . . . . Targets Rammed 3 | . . 3 . Kicked 3 | . . 3 . Crushed . | . . . . Highest Temperature 85 | . 18 15 85 Average Temperature 15 | . 7 8 27 Received Heat Transfer 360 | . 216 54 90 Siege Activations . | . . . . Robots Corrupted . | . . . . Combat Hostiles . | . . . . Parts Fried . | . . . . Impact Corruptions . | . . . . Robots Melted . | . . . . Combat Hostiles . | . . . . Parts Melted . | . . . . Heat Transferred 125 | . . . 125 Parts Sabotaged . | . . . . Parts Stolen . | . . . . Parts Stripped . | . . . . Power Chain Reactions . | . . . . Missiles Intercepted . | . . . . Alert | -11 -10 -10 -10 ------- Run | Scr Mat Min Exi Peak Influence 193 | . 141 193 . Initial 28 | . . 28 . Average 46 | . 67 40 . Maximum Alert Level . | . . . . Low Security (%) 100 | 100 100 100 . Level 1 . | . . . . Level 2 . | . . . . Level 3 . | . . . . Level 4 . | . . . . Level 5 . | . . . . High Security . | . . . . Max Security . | . . . . Squads Dispatched . | . . . . Investigation . | . . . . Extermination . | . . . . Reinforcement . | . . . . Assault . | . . . . Garrison . | . . . . Intercept . | . . . . Searches Triggered . | . . . . Construction Impeded . | . . . . Haulers Reinforced . | . . . . Active Scanning Responses . | . . . . Cargo Convoy Interrupts . | . . . . Stealth | -11 -10 -10 -10 --------- Run | Scr Mat Min Exi Distress Signals . | . . . . Communications Jammed . | . . . . Distress Signals . | . . . . Times Spotted 55 | . 11 12 32 Peak Tracking Total 11 | . 3 4 11 Tactical Retreats 3 | . . 2 1 Traps | -11 -10 -10 -10 ------- Run | Scr Mat Min Exi Traps Triggered . | . . . . Indirectly . | . . . . Trap Hack Attempts . | . . . . Triggered . | . . . . Disarmed . | . . . . Reprogrammed . | . . . . Reused . | . . . . Traps Extracted . | . . . . Installed . | . . . . Triggered . | . . . . Machines | -11 -10 -10 -10 ---------- Run | Scr Mat Min Exi Machines Disabled 6 | . . . 6 Max in Single Turn 1 | . . . 1 Machines Sabotaged . | . . . . Garrisons Compromised . | . . . . Overloaded Fab Kills . | . . . . Hacking | -11 -10 -10 -10 --------- Run | Scr Mat Min Exi Machines Accessed 7 | . 3 . 4 Terminals 3 | . 3 . . Fabricators . | . . . . Repair Stations . | . . . . Recycling Units . | . . . . Scanalyzers . | . . . . Garrison Access . | . . . . Total Hacks 59 | . 10 . 49 Successful 56 | . 7 . 49 Failed 3 | . 3 . . Catastrophic . | . . . . Database Lockouts . | . . . . Manual 2 | . . . 2 Terminals 10 | . 10 . . Fabricators . | . . . . Repair Stations . | . . . . Recycling Units . | . . . . Scanalyzers . | . . . . Garrison Access . | . . . . Terminal Hacks 56 | . 7 . 49 Record 52 | . 3 . 49 Branch Access Points 1 | . 1 . . Alert Level 1 | . 1 . . Dispatch Records 1 | . 1 . . Zone Layout 1 | . 1 . . Fabricator Hacks . | . . . . Repair Station Hacks . | . . . . Recycling Unit Hacks . | . . . . Scanalyzer . | . . . . Garrison Access Hacks . | . . . . Unauthorized Hacks . | . . . . Terminals . | . . . . Fabricators . | . . . . Repair Stations . | . . . . Recycling Units . | . . . . Scanalyzers . | . . . . Garrison Access . | . . . . Data Cores Recovered . | . . . . Used . | . . . . Hacking Detections 3 | . 3 . . Full Trace Events 1 | . 1 . . Feedback Events . | . . . . Feedback Blocked . | . . . . Robot Schematics Acquired . | . . . . Robots Built . | . . . . Authchips . | . . . . Time . | . . . . Total Robot Build Rating . | . . . . Part Schematics Acquired . | . . . . Parts Built . | . . . . Authchips . | . . . . Time . | . . . . Total Part Build Rating . | . . . . Parts Repaired . | . . . . Time . | . . . . Parts Recycled . | . . . . Recycled Matter . | . . . . Retrieved Matter . | . . . . Retrieved Components . | . . . . Parts Scanalyzed . | . . . . Part Schematics Acquired . | . . . . Parts Damaged . | . . . . Bothacking | -11 -10 -10 -10 ------------ Run | Scr Mat Min Exi Used RIF Installer . | . . . . Robots Hacked . | . . . . Non-combat . | . . . . Combat . | . . . . Robot Hacks Applied . | . . . . Relay Couplers Released . | . . . . Fabnet Peak Effective % . | . . . . Robots Rewired . | . . . . Allies Hacked . | . . . . Hacks Repelled . | . . . . Allies | -11 -10 -10 -10 -------- Run | Scr Mat Min Exi Total Allies 3 | . . 3 . Largest Group 3 | . . 3 2 Highest-Rated Group 40 | . . 40 24 Highest-Rated Ally 16 | . . 16 16 Total Orders . | . . . . Ally Attacks 24 | . . 13 11 Total Damage 229 | . . 169 60 Kills 4 | . . 4 . Allies Corrupted . | . . . . Allies Melted . | . . . . Intel | -11 -10 -10 -10 ------- Run | Scr Mat Min Exi Robot Analysis Total . | . . . . Derelict Logs Recovered 1 | . . 1 . Drone Launches . | . . . . Drone Recoveries . | . . . . Exploration | -11 -10 -10 -10 ------------- Run | Scr Mat Min Exi Turns Passed 3909 | 83 573 1561 1692 Spaces Moved 1513 | 58 270 591 594 Core 22 | 20 2 . . Treads . | . . . . Legs 1491 | 38 268 591 594 Wheels . | . . . . Hover . | . . . . Flight . | . . . . Fastest Speed 50 | 50 120 190 260 Average Speed 233 | 120 147 251 265 Slowest Speed 500 | 300 500 400 470 Overloaded Moves . | . . . . Propulsion Burnouts . | . . . . Robots Hopped . | . . . . Cave-ins Triggered . | . . . . Exploration Rate (%) 62 | 4 54 99 93 Regions Visited 3 Branch Regions 2 Pre-discovered Areas 1 | . . . 1 Known Exits Taken 3 | 1 1 1 . Unknown Exits Taken . | . . . . Scrap Searched 1 | . . 1 . Spaces Dug . | . . . . Terrain Destroyed 21 | . . . 21 Melee . | . . . . Projectile 8 | . . . 8 AOE 13 | . . . 13 Terrain Rammed . | . . . . Walls Destroyed . | . . . . Machines Disabled . | . . . . Actions | -11 -10 -10 -10 --------- Run | Scr Mat Min Exi Total 1738 | 68 372 628 670 Wait 69 | . 51 12 6 Move 1510 | 57 269 590 594 Hop . | . . . . Pick Up 28 | 4 5 3 16 Fast Attach 10 | 7 1 . 2 Attach 11 | . 1 1 9 Detach 3 | . 1 . 2 Swap 7 | . 4 3 . Drop 14 | . 1 . 13 Fire 83 | . 39 16 28 Melee . | . . . . Ram . | . . . . Kick 3 | . . 3 . Crush . | . . . . Escape Stasis . | . . . . Rewire . | . . . . Trap . | . . . . Miscellaneous . | . . . . Route ------- -11/Scrapyard -10/Materials (discovered 3 exits: *Mat / *Min x2) -10/Mines (discovered 3 exits: *Mat x2 / *Exi) -10/Exiles (discovered 1 exit: *Min) History --------- Turn | Location | Event 4 | -11/Scrapyard | Identified exit to Materials 4 | -11/Scrapyard | Discovered exit to Materials (range 16) 84 | -11/Scrapyard | Entered Materials 84 | -10/Materials | Evolved 1 slot: Utility x1 208 | -10/Materials | Identified exit to Mines 289 | -10/Materials | Identified exit to Materials 289 | -10/Materials | Discovered exit to Materials (range 5) 300 | -10/Materials | Build established: Hacker-Mutant 657 | -10/Materials | Entered Mines 704 | -10/Mines | Received a Rocket Launcher from a helpful Derelict 1170 | -10/Mines | Found a damaged Exp. Sensor Array with a note attached 1176 | -10/Mines | Found Prototype Device 1275 | -10/Mines | Assisted by bots powering up and referring to "LRC-V3" 1359 | -10/Mines | Discovered exit to Materials (range 5) 1890 | -10/Mines | Learned Materials emergency access door positions 2038 | -10/Mines | Discovered exit to Materials (range 7) 2200 | -10/Mines | Deemed a non-threat by the Exiles lab entrance 2200 | -10/Mines | Identified exit to Exiles 2200 | -10/Mines | Discovered exit to Exiles (range 5) 2218 | -10/Mines | Entered Exiles 2218 | -10/Exiles | Accompanied by 2 allies 2286 | -10/Exiles | Met 8R-AWN 2336 | -10/Exiles | Met EX-HEX 2518 | -10/Exiles | Met EX-DEC 2560 | -10/Exiles | Visited The Gauntlet 2916 | -10/Exiles | Learned location of Zion (-7) 3014 | -10/Exiles | Identified exit to Mines 3014 | -10/Exiles | Discovered exit to Mines (range 12) 3222 | -10/Exiles | Met EX-BIN 3295 | -10/Exiles | Aligned with FarCom system 3298 | -10/Exiles | Given EX-Vault access code 3391 | -10/Exiles | Opened EX-Vault 3403 | -10/Exiles | Found Prototype Ballistic Gun 3439 | -10/Exiles | Identified AWS/Gauss 3457 | -10/Exiles | Found Prototype Ballistic Cannon 3470 | -10/Exiles | Found Prototype Device 3516 | -10/Exiles | Exiles lab attacked by MAIN.C 3736 | -10/Exiles | Lost 5 parts (1p1n3w) 3780 | -10/Exiles | Core integrity fell below 50% 3881 | -10/Exiles | Destroyed 23 combat bots 3888 | -10/Exiles | Core integrity fell below 20% 3910 | -10/Exiles | Destroyed by H-55 Commando with Gauss Rifle Last Messages --------------- 03886_ Slug penetrates H-55 Commando. 03886_ Slug penetrates Machine. 03887_ H-55 Commando destroyed. 03888_ Slug penetrates Wall. 03890_ AWS/Gauss suddenly breaks down. 03892_ Slug penetrates Wall. 03894_ Slug penetrates P-60 Hacker. 03900_ P-60 Hacker destroyed. 03900_ Switching to secondary target: P-60 Hacker. 03900_ P-60 Hacker destroyed. 03901_ Slug penetrates Wall. 03903_ Slug penetrates P-60 Hacker. 03905_ System corrupted: Matter fused (-6). 03906_ Slug penetrates P-60 Hacker. 03906_ Destroyed Shock Rifle. 03906_ Slug penetrates P-60 Hacker. 03906_ P-60 Hacker destroyed. 03909_ Slug penetrates G-34 Mercenary. 03909_ G-34 Mercenary destroyed. 03909_ Slug penetrates Wall. Map ----- +----------------------------------------------------+ | """#????????????????????????????????????? | | """##???????????????????????????????????? | | """"""??????????????????????????????????? | | """######???????????????????????????????? | | "X" """"" #???????????????????????????????? | | """ # "??????????????????????????????????? | | """"""""#????????????????????????????????????? | | | ##########????????????????????????????????????? | | =! #?????????????????????????????????????????????? | | =[ ###???????????????????????????????????????????? | | ! # ###?????????????????????????????????????????? | | = [# ###########???????????????????????????????? | | [*= ##"""""""""##?????????????????????????????? | | [ ! " """ """"##????????????????????????????? | | = [ "" " #????????????????????????????? | | =% %[ " """#????????????????????????????? | | "a"#???????????#####????????????? | | = [ "="##?????????##" #????????????? | | =!*""###???????#" #????????????? | | = *[%!%%""#??????##" ##???????????? | | " %! !%==|[! ###??### !%[ ###????????## | | ### " ! |[!%[*[[[#??# =%!|* =########## | | ??##""" ==**%==!#### [==[|*![% ""## | | ???#"""" !%**%=%!%##%%[ !%*%% h%* | | ??##"" !! % [*=%!%[% %# ! | | ###"""" *=%==%@![! #### | | """ % % =%%!=**= ""#?#"""""#### | | " %[ % !*=!% ""##?#######??#### | | % # ;###??????????????#### | | % % ####???????????????????? | | "[ ##??????????????????????? | | "" " ""##???????????????????????? | | ##""" " " ""# "##????????????????????????? | | ######""" """## "" """##?????????????????????????? | | #????###""""###########??????????????????????????? | | ####???######????????????????????????????????????? | | "!#?????????????????????????????????????????????? | | !#?????????????????????????????????????????????? | | "#?????????????????????????????????????????????? | | "!"#?????????????????????????????????????????????? | | ####?????????????????????????????????????????????? | | ?????????????????????????????????????????????????? | | ?????????????????????????????????????????????????? | | ?????????????????????????????????????????????????? | | ?????????????????????????????????????????????????? | | ?????????????????????????????????????????????????? | | ?????????????????????????????????????????????????? | | ?????????????????????????????????????????????????? | | ?????????????????????????????????????????????????? | | ?????????????????????????????????????????????????? | +----------------------------------------------------+ Best States ------------- Heat Dissipation 25 Energy Generation 15 Energy Capacity 250 Matter Stores 300 Matter Capacity 300 Sight Range 16 Terrain Scan Density 10 Resistance: KI 35 Resistance: TH 35 Resistance: EX 35 Resistance: EM 35 Resistance: I 35 Resistance: S 35 Resistance: P 35 Core Shielding 20 Evasion (%) 55 Targeting Accuracy 5 Offensive Hacking 20 Item Schematics ----------------- None Robot Schematics ------------------ None Fabricated ------------ Nothing Alien Tech Used ----------------- None Achievements -------------- None Challenges ------------ None Game ------ Seed MakeshiftGhostPrototype Manual? 0 Play Time 00:26:23 Cumulative 1028.8 hours Start 2022.03.29 @ 14:50:17 End 2022.03.29 @ 15:15:10 Sessions 1 Manual Loads 0 Difficulty Explorer Special Mode None Game No. 765 Rogue 62 Adventurer 0 Explorer 703 Win Type - Total 4 Types 4/0/0/0/0/0/0/0/0 Lore% 69 Gallery% 77 Achievement% 60 Wizard Run 0 Options --------- ASCII 0 Keyboard 0 Movement Mouse Keybinds 0 Fullscreen 1 Font 24/Smallcaps Map View 76x50 Tactical HUD 1 Map Filters NONE Filters NONE Steam 1 RUN: 7aae6955-357d-4c0f-988a-86704a4588ec